fUST/lending_fUST_20250927
["ID","MTS","AMOUNT","RATE_DAILY","PERIOD"]
[388030476,1758971438177,-210.66120981,0.00032,120]
[388030477,1758971438187,-242.349221,0.0003215,60]
[388030478,1758971438197,-199.74539683,0.000323,120]
[388030479,1758971438208,-160.0,0.00032548,54]
[388030480,1758971438219,-199.74539683,0.000326,120]
[388030481,1758971438229,-1000.0,0.00032839,2]
[388030482,1758971438239,-1000.0,0.00032839,2]
[388030483,1758971438250,-624.6657661,0.00032866,2]
[388030484,1758971438260,-655.554377,0.00032877,2]
[388030485,1758971438270,-199.359,0.00032932,60]
[388030486,1758971438280,-271.9183814,0.00032937,4]
[388030487,1758971438291,-151.00000001,0.00032942,14]
[388030488,1758971438301,-199.74539683,0.00033,120]
[388030489,1758971438312,-1000.0,0.00033,2]
[388030490,1758971438321,-199.74539683,0.000333,120]
[388030491,1758971438331,-412.0,0.00033407,3]
[388030492,1758971438341,-17971.20495587,0.00033932,2]
[388030493,1758971438351,-624.6657661,0.00033932,2]
[388030494,1758971438362,-1000.0,0.00034,2]
[388030495,1758971438372,-46346.5112097,0.00034147,2]
[388030496,1758971438382,-500.0,0.00034472,2]
[388030497,1758971438392,-2161.0,0.00034472,2]
[388030498,1758971438402,-635.0,0.00034472,2]
[388030499,1758971438412,-598.0,0.00034597,2]
[388030500,1758971438422,-598.0,0.00034685,7]
[388030501,1758971438431,-151.0,0.00034835,30]
[388030502,1758971438441,-168.0,0.00034911,2]
[388030503,1758971438451,-673.28300876,0.00034982,2]
[388030504,1758971438461,-624.6657661,0.00034998,2]
[388030505,1758971438471,-2106.71,0.00035,35]
[388030506,1758971438480,-168.0,0.00035097,2]
[388030507,1758971438490,-168.0,0.00035152,2]
[388030508,1758971438499,-168.0,0.00035227,2]
[388030509,1758971438509,-168.0,0.00035267,2]
[388030510,1758971438519,-150.0,0.00035281,2]
[388030511,1758971438529,-296.8483435,0.0003535,30]
[388030512,1758971438539,-26182.6914911,0.0003549,3]
[388030513,1758971438552,-4674.01018881,0.000355,60]
[388030514,1758971438563,-242.349221,0.00035574,60]
[388030515,1758971438573,-26182.6914911,0.00035606,3]
[388030516,1758971438583,-480.0,0.00035616,9]
[388030517,1758971438593,-480.0,0.00035616,9]
[388030518,1758971438602,-480.0,0.00035616,9]
[388030519,1758971438612,-314.32798609,0.00035616,9]
[388030520,1758971438622,-480.0,0.00035616,9]
[388030521,1758971438631,-480.0,0.00035616,9]
[388030522,1758971438641,-480.0,0.00035616,9]
[388030523,1758971438650,-480.0,0.00035616,9]
[388030524,1758971438660,-480.0,0.00035616,9]
[388030525,1758971438669,-480.0,0.00035616,9]
[388030526,1758971438679,-480.0,0.00035616,9]
[388030527,1758971438687,-480.0,0.00035616,9]
[388030528,1758971438697,-480.0,0.00035616,9]
[388030529,1758971438706,-480.0,0.00035616,9]
[388030530,1758971438716,-480.0,0.00035616,9]
[388030531,1758971438725,-480.0,0.00035616,9]
[388030532,1758971438735,-480.0,0.00035616,9]
[388030533,1758971438745,-480.0,0.00035616,9]
[388030534,1758971438754,-485.44968466,0.00035616,9]
[388030535,1758971438763,-558.34745576,0.00035616,9]
[388030536,1758971438772,-480.0,0.00035616,9]
[388030537,1758971438782,-480.0,0.00035616,9]
[388030538,1758971438791,-484.00080736,0.00035616,9]
[388030539,1758971438801,-225.65547959,0.00035616,9]
[388030540,1758971438811,-480.0,0.00035616,9]
[388030541,1758971438820,-480.0,0.00035616,9]
[388030542,1758971438829,-480.0,0.00035616,9]
[388030543,1758971438839,-763.86,0.00035616,9]
[388030544,1758971438849,-480.0,0.00035616,9]
[388030545,1758971438858,-480.0,0.00035616,7]
[388030546,1758971438868,-480.0,0.00035616,9]
[388030547,1758971438878,-480.0,0.00035616,9]
[388030548,1758971438888,-480.0,0.00035616,9]
[388030549,1758971438898,-480.0,0.00035616,9]
[388030550,1758971438907,-480.0,0.00035616,9]
[388030551,1758971438917,-498.92318362,0.00035616,9]
[388030552,1758971438927,-480.0,0.00035616,9]
[388030553,1758971438937,-608.14,0.00035616,9]
[388030554,1758971438947,-480.0,0.00035616,9]
[388030555,1758971438958,-480.0,0.00035616,9]
[388030556,1758971438968,-480.0,0.00035616,9]
[388030557,1758971438978,-480.0,0.00035616,9]
[388030558,1758971438988,-159.6437741,0.00035616,9]
[388030559,1758971438998,-480.0,0.00035616,9]
[388030560,1758971439008,-480.0,0.00035616,9]
[388030561,1758971439018,-480.0,0.00035616,9]
[388030562,1758971439027,-628.08,0.00035616,9]
[388030563,1758971439037,-480.0,0.00035616,9]
[388030564,1758971439047,-480.0,0.00035616,9]
[388030565,1758971439060,-480.0,0.00035616,9]
[388030566,1758971439070,-805.32,0.00035616,9]
[388030567,1758971439080,-480.0,0.00035616,9]
[388030568,1758971439089,-480.0,0.00035616,9]
[388030569,1758971439099,-480.0,0.00035616,9]
[388030570,1758971439108,-644.89,0.00035616,9]
[388030571,1758971439118,-480.0,0.00035616,9]
[388030572,1758971439129,-520.0,0.00035616,3]
[388030573,1758971439139,-480.0,0.00035616,9]
[388030574,1758971439149,-480.0,0.00035616,9]
[388030575,1758971439158,-491.75437231,0.00035616,9]
[388030576,1758971439168,-480.0,0.00035616,9]
[388030577,1758971439178,-213.52741714,0.00035616,9]
[388030578,1758971439188,-548.54468897,0.00035616,9]
[388030579,1758971439198,-480.0,0.00035616,9]
[388030580,1758971439208,-1218.32,0.00035616,9]
[388030581,1758971439218,-480.0,0.00035616,9]
[388030582,1758971439227,-480.0,0.00035616,2]
[388030583,1758971439237,-480.0,0.00035616,9]
[388030584,1758971439247,-480.0,0.00035616,9]
[388030585,1758971439256,-998.02,0.00035616,9]
[388030586,1758971439267,-480.0,0.00035616,9]
[388030587,1758971439276,-480.0,0.00035616,9]
[388030588,1758971439286,-480.0,0.00035616,9]
[388030589,1758971439296,-480.0,0.00035616,9]
[388030590,1758971439307,-480.0,0.00035616,9]
[388030591,1758971439316,-480.0,0.00035616,9]
[388030592,1758971439326,-480.0,0.00035616,9]
[388030593,1758971439336,-1272.04,0.00035616,9]
[388030594,1758971439345,-480.0,0.00035616,9]
[388030595,1758971439355,-480.0,0.00035616,9]
[388030596,1758971439364,-480.0,0.00035616,9]
[388030597,1758971439373,-480.0,0.00035616,9]
[388030598,1758971439383,-480.0,0.00035616,9]
[388030599,1758971439392,-480.0,0.00035616,9]
[388030600,1758971439402,-589.61,0.00035616,9]
[388030601,1758971439411,-480.0,0.00035616,9]
[388030602,1758971439421,-480.0,0.00035616,9]
[388030603,1758971439430,-480.0,0.00035616,9]
[388030604,1758971439441,-480.0,0.00035616,9]
[388030606,1758971439450,-523.54,0.00035616,9]
[388030608,1758971439459,-480.0,0.00035616,9]
[388030610,1758971439469,-480.0,0.00035616,9]
[388030612,1758971439478,-480.0,0.00035616,9]
[388030613,1758971439487,-480.0,0.00035616,9]
[388030614,1758971439497,-480.0,0.00035616,9]
[388030615,1758971439506,-480.0,0.00035616,9]
[388030616,1758971439515,-480.0,0.00035616,9]
[388030617,1758971439525,-480.0,0.00035616,9]
[388030618,1758971439535,-480.0,0.00035616,9]
[388030619,1758971439544,-480.0,0.00035616,9]
[388030620,1758971439563,-480.0,0.00035616,9]
[388030621,1758971439575,-480.0,0.00035616,9]
[388030622,1758971439584,-480.0,0.00035616,9]
[388030623,1758971439595,-480.0,0.00035616,9]
[388030624,1758971439604,-160.0,0.00035616,7]
[388030625,1758971439613,-483.20078462,0.00035616,9]
[388030626,1758971439623,-480.0,0.00035616,9]
[388030627,1758971439633,-480.0,0.00035616,9]
[388030628,1758971439642,-480.0,0.00035616,9]
[388030629,1758971439651,-480.0,0.00035616,9]
[388030630,1758971439661,-480.0,0.00035616,7]
[388030631,1758971439670,-480.0,0.00035616,9]
[388030632,1758971439679,-853.16,0.00035616,9]
[388030633,1758971439689,-480.0,0.00035616,9]
[388030634,1758971439698,-480.0,0.00035616,9]
[388030636,1758971439707,-1416.44,0.00035616,9]
[388030638,1758971439717,-480.0,0.00035616,9]
[388030640,1758971439726,-480.0,0.00035616,9]
[388030642,1758971439735,-480.0,0.00035616,9]
[388030643,1758971439743,-480.0,0.00035616,9]
[388030644,1758971439752,-480.0,0.00035616,9]
[388030646,1758971439762,-480.0,0.00035616,9]
[388030647,1758971439771,-534.58,0.00035616,9]
[388030648,1758971439780,-480.0,0.00035616,9]
[388030649,1758971439789,-480.0,0.00035616,9]
[388030650,1758971439799,-480.0,0.00035616,9]
[388030651,1758971439808,-1834.18,0.00035616,9]
[388030652,1758971439817,-480.0,0.00035616,9]
[388030653,1758971439827,-480.0,0.00035616,9]
[388030654,1758971439836,-480.0,0.00035616,9]
[388030655,1758971439845,-564.83,0.00035616,9]
[388030656,1758971439854,-480.0,0.00035616,9]
[388030657,1758971439863,-504.76262577,0.00035616,9]
[388030658,1758971439872,-480.0,0.00035616,9]
[388030659,1758971439881,-480.0,0.00035616,9]
[388030660,1758971439891,-480.0,0.00035616,9]
[388030662,1758971439900,-480.0,0.00035616,9]
[388030664,1758971439909,-480.0,0.00035616,9]
[388030665,1758971439918,-493.19515683,0.00035616,9]
[388030667,1758971439927,-480.0,0.00035616,9]
[388030668,1758971439936,-612.87,0.00035616,9]
[388030669,1758971439945,-480.0,0.00035616,9]
[388030670,1758971439955,-580.9,0.00035616,9]
[388030671,1758971439965,-769.12,0.00035616,9]
[388030672,1758971439974,-480.0,0.00035616,9]
[388030673,1758971439984,-480.0,0.00035616,9]
[388030674,1758971439993,-480.0,0.00035616,9]
[388030675,1758971440002,-480.0,0.00035616,9]
[388030676,1758971440011,-480.0,0.00035616,9]
[388030677,1758971440021,-480.0,0.00035616,9]
[388030678,1758971440030,-486.24949805,0.00035616,9]
[388030679,1758971440039,-480.0,0.00035616,9]
[388030680,1758971440047,-2027.49,0.00035616,9]
[388030681,1758971440057,-480.0,0.00035616,9]
[388030682,1758971440068,-2445.06,0.00035616,9]
[388030683,1758971440078,-480.0,0.00035616,9]
[388030684,1758971440087,-480.0,0.00035616,9]
[388030685,1758971440097,-480.0,0.00035616,9]
[388030686,1758971440107,-480.0,0.00035616,9]
[388030687,1758971440123,-480.0,0.00035616,9]
[388030688,1758971440132,-480.0,0.00035616,9]
[388030689,1758971440141,-480.0,0.00035616,9]
[388030690,1758971440151,-480.0,0.00035616,9]
[388030691,1758971440160,-480.0,0.00035616,9]
[388030692,1758971440170,-480.0,0.00035616,9]
[388030693,1758971440179,-480.0,0.00035616,9]
[388030694,1758971440189,-480.0,0.00035616,9]
[388030695,1758971440198,-480.0,0.00035616,9]
[388030696,1758971440207,-480.0,0.00035616,9]
[388030697,1758971440216,-480.0,0.00035616,9]
[388030698,1758971440226,-841.35,0.00035616,9]
[388030699,1758971440235,-480.0,0.00035616,9]
[388030700,1758971440246,-480.0,0.00035616,9]
[388030701,1758971440255,-480.0,0.00035616,9]
[388030702,1758971440265,-480.0,0.00035616,9]
[388030703,1758971440275,-480.0,0.00035616,9]
[388030704,1758971440284,-500.0,0.00035616,9]
[388030705,1758971440295,-500.0,0.00035616,9]
[388030706,1758971440305,-1556.4,0.00035616,9]
[388030707,1758971440315,-500.0,0.00035616,9]
[388030708,1758971440324,-500.0,0.00035616,9]
[388030709,1758971440334,-233.76631357,0.00035616,7]
[388030710,1758971440343,-500.0,0.00035616,9]
[388030711,1758971440352,-500.0,0.00035616,9]
[388030712,1758971440361,-331.0,0.00035616,9]
[388030713,1758971440371,-480.0,0.00035616,9]
[388030714,1758971440380,-480.0,0.00035616,9]
[388030715,1758971440389,-480.0,0.00035616,9]
[388030716,1758971440399,-480.0,0.00035616,9]
[388030717,1758971440408,-780.38,0.00035616,9]
[388030718,1758971440418,-556.56,0.00035616,9]
[388030719,1758971440427,-480.0,0.00035616,9]
[388030720,1758971440437,-697.7,0.00035616,9]
[388030721,1758971440446,-480.0,0.00035616,9]
[388030722,1758971440456,-480.0,0.00035616,9]
[388030723,1758971440466,-820.44,0.00035616,9]
[388030724,1758971440477,-482.55780223,0.00035616,9]
[388030725,1758971440486,-480.0,0.00035616,9]
[388030726,1758971440495,-1857.48,0.00035616,9]
[388030727,1758971440504,-480.0,0.00035616,9]
[388030728,1758971440513,-480.0,0.00035616,9]
[388030729,1758971440522,-480.0,0.00035616,9]
[388030730,1758971440532,-480.0,0.00035616,9]
[388030731,1758971440541,-480.0,0.00035616,9]
[388030732,1758971440556,-480.0,0.00035616,9]
[388030733,1758971440566,-480.0,0.00035616,9]
[388030734,1758971440576,-480.0,0.00035616,9]
[388030735,1758971440585,-480.0,0.00035616,9]
[388030736,1758971440596,-480.0,0.00035616,9]
[388030737,1758971440605,-480.0,0.00035616,9]
[388030738,1758971440614,-1227.49,0.00035616,9]
[388030739,1758971440623,-480.0,0.00035616,9]
[388030740,1758971440634,-659.58,0.00035616,9]
[388030741,1758971440643,-485.07123252,0.00035616,9]
[388030742,1758971440652,-480.0,0.00035616,9]
[388030743,1758971440661,-480.0,0.00035616,9]
[388030744,1758971440670,-949.32,0.00035616,9]
[388030745,1758971440680,-480.0,0.00035616,9]
[388030746,1758971440690,-480.0,0.00035616,9]
[388030747,1758971440699,-480.0,0.00035616,9]
[388030748,1758971440709,-491.15562936,0.00035616,9]
[388030749,1758971440717,-480.0,0.00035616,9]
[388030750,1758971440728,-480.0,0.00035616,9]
[388030751,1758971440737,-480.0,0.00035616,9]
[388030752,1758971440746,-480.0,0.00035616,9]
[388030753,1758971440755,-1124.4,0.00035616,9]
[388030754,1758971440765,-480.0,0.00035616,9]
[388030755,1758971440774,-480.0,0.00035616,9]
[388030756,1758971440783,-1089.8,0.00035616,9]
[388030757,1758971440792,-480.0,0.00035616,9]
[388030758,1758971440801,-752.5,0.00035616,9]
[388030759,1758971440812,-480.0,0.00035616,9]
[388030760,1758971440823,-480.0,0.00035616,9]
[388030761,1758971440832,-480.0,0.00035616,9]
[388030762,1758971441041,-480.0,0.00035616,9]
[388030763,1758971441051,-480.0,0.00035616,9]
[388030764,1758971441061,-480.0,0.00035616,9]
[388030765,1758971441070,-923.24,0.00035616,9]
[388030766,1758971441079,-480.0,0.00035616,9]
[388030767,1758971441089,-1000.0,0.00035616,9]
[388030768,1758971441099,-480.0,0.00035616,9]
[388030769,1758971441108,-480.0,0.00035616,9]
[388030770,1758971441119,-480.0,0.00035616,9]
[388030771,1758971441128,-480.0,0.00035616,9]
[388030772,1758971441138,-482.2194688,0.00035616,9]
[388030773,1758971441148,-482.52426494,0.00035616,9]
[388030774,1758971441158,-642.31,0.00035616,9]
[388030775,1758971441167,-480.0,0.00035616,9]
[388030776,1758971441176,-480.0,0.00035616,9]
[388030777,1758971441185,-480.0,0.00035616,9]
[388030778,1758971441194,-480.0,0.00035616,9]
[388030779,1758971441204,-480.0,0.00035616,9]
[388030780,1758971441213,-480.0,0.00035616,9]
[388030781,1758971441223,-480.0,0.00035616,9]
[388030782,1758971441233,-1010.8,0.00035616,9]
[388030783,1758971441242,-480.0,0.00035616,9]
[388030784,1758971441251,-480.0,0.00035616,9]
[388030785,1758971441260,-485.92192188,0.00035616,9]
[388030786,1758971441270,-480.0,0.00035616,9]
[388030787,1758971441279,-480.0,0.00035616,9]
[388030788,1758971441289,-521.21,0.00035616,9]
[388030789,1758971441299,-480.0,0.00035616,9]
[388030790,1758971441308,-480.0,0.00035616,9]
[388030791,1758971441319,-480.0,0.00035616,9]
[388030792,1758971441328,-480.0,0.00035616,9]
[388030793,1758971441337,-1015.33,0.00035616,9]
[388030794,1758971441346,-480.0,0.00035616,9]
[388030795,1758971441356,-480.0,0.00035616,9]
[388030796,1758971441365,-609.96,0.00035616,9]
[388030797,1758971441374,-480.0,0.00035616,9]
[388030798,1758971441383,-596.29,0.00035616,9]
[388030799,1758971441392,-910.08,0.00035616,9]
[388030800,1758971441401,-1706.45,0.00035616,9]
[388030801,1758971441411,-480.0,0.00035616,9]
[388030802,1758971441420,-480.0,0.00035616,9]
[388030803,1758971441429,-480.0,0.00035616,9]
[388030804,1758971441439,-480.0,0.00035616,9]
[388030805,1758971441448,-2575.52,0.00035616,9]
[388030806,1758971441457,-873.34,0.00035616,9]
[388030807,1758971441468,-480.0,0.00035616,9]
[388030808,1758971441478,-206.60014231,0.00035616,9]
[388030809,1758971441487,-480.0,0.00035616,9]
[388030810,1758971441497,-480.0,0.00035616,9]
[388030811,1758971441506,-2030.7,0.00035616,9]
[388030812,1758971441515,-480.0,0.00035616,9]
[388030813,1758971441526,-480.0,0.00035616,9]
[388030814,1758971441535,-153.69326161,0.00035616,9]
[388030815,1758971441546,-480.0,0.00035616,9]
[388030816,1758971441565,-480.0,0.00035616,9]
[388030817,1758971441574,-1713.68,0.00035616,9]
[388030818,1758971441584,-480.0,0.00035616,9]
[388030819,1758971441593,-480.0,0.00035616,9]
[388030820,1758971441602,-480.0,0.00035616,9]
[388030821,1758971441613,-480.0,0.00035616,9]
[388030822,1758971441622,-502.54,0.00035616,9]
[388030823,1758971441631,-480.0,0.00035616,9]
[388030824,1758971441640,-480.0,0.00035616,9]
[388030825,1758971441650,-480.0,0.00035616,9]
[388030826,1758971441659,-1094.32,0.00035616,9]
[388030827,1758971441668,-480.0,0.00035616,9]
[388030828,1758971441677,-491.24,0.00035616,9]
[388030829,1758971441687,-480.0,0.00035616,9]
[388030830,1758971441697,-1276.27,0.00035616,9]
[388030831,1758971441707,-480.0,0.00035616,9]
[388030832,1758971441717,-480.0,0.00035616,9]
[388030833,1758971441726,-495.27,0.00035616,9]
[388030834,1758971441735,-480.0,0.00035616,9]
[388030835,1758971441746,-480.0,0.00035616,9]
[388030836,1758971441755,-480.0,0.00035616,9]
[388030837,1758971441764,-483.40836232,0.00035616,9]
[388030838,1758971441773,-480.0,0.00035616,9]
[388030839,1758971441782,-1039.35,0.00035616,9]
[388030840,1758971441790,-480.0,0.00035616,9]
[388030841,1758971441798,-480.0,0.00035616,9]
[388030842,1758971441806,-480.0,0.00035616,9]
[388030843,1758971441814,-480.0,0.00035616,9]
[388030844,1758971441823,-625.97010585,0.00035616,9]
[388030845,1758971441832,-480.0,0.00035616,9]
[388030846,1758971441842,-453.43869655,0.00035616,9]
[388030847,1758971441851,-480.0,0.00035616,9]
[388030848,1758971441860,-1196.13,0.00035616,9]
[388030849,1758971441869,-480.0,0.00035616,7]
[388030850,1758971441879,-3038.34,0.00035616,9]
[388030851,1758971441888,-480.0,0.00035616,9]
[388030852,1758971441898,-540.91,0.00035616,9]
[388030853,1758971441908,-480.0,0.00035616,9]
[388030854,1758971441917,-480.0,0.00035616,9]
[388030855,1758971441927,-700.28,0.00035616,9]
[388030856,1758971441936,-480.0,0.00035616,9]
[388030857,1758971441946,-480.0,0.00035616,9]
[388030858,1758971441956,-480.0,0.00035616,9]
[388030859,1758971441965,-480.0,0.00035616,9]
[388030860,1758971441974,-480.0,0.00035616,9]
[388030861,1758971441983,-483.59331461,0.00035616,9]
[388030862,1758971441992,-480.0,0.00035616,9]
[388030863,1758971442002,-480.0,0.00035616,9]
[388030864,1758971442011,-480.0,0.00035616,9]
[388030865,1758971442020,-658.19,0.00035616,9]
[388030866,1758971442029,-480.0,0.00035616,9]
[388030867,1758971442039,-480.0,0.00035616,9]
[388030868,1758971442048,-631.1,0.00035616,9]
[388030869,1758971442057,-2451.11,0.00035616,9]
[388030870,1758971442066,-480.0,0.00035616,9]
[388030871,1758971442075,-681.94,0.00035616,9]
[388030872,1758971442085,-480.0,0.00035616,9]
[388030873,1758971442094,-3832.32,0.00035616,9]
[388030874,1758971442104,-480.0,0.00035616,9]
[388030875,1758971442113,-480.0,0.00035616,9]
[388030876,1758971442123,-487.17796092,0.00035616,9]
[388030877,1758971442132,-304.00226194,0.00035616,9]
[388030878,1758971442141,-480.0,0.00035616,9]
[388030879,1758971442150,-2206.18,0.00035616,9]
[388030880,1758971442160,-509.86,0.00035616,9]
[388030881,1758971442169,-480.0,0.00035616,9]
[388030882,1758971442178,-482.12680109,0.00035616,9]
[388030883,1758971442187,-480.0,0.00035616,9]
[388030884,1758971442195,-484.04788065,0.00035616,9]
[388030885,1758971442204,-845.64,0.00035616,9]
[388030886,1758971442214,-480.0,0.00035616,9]
[388030887,1758971442223,-661.18,0.00035616,9]
[388030888,1758971442232,-480.0,0.00035616,9]
[388030889,1758971442242,-502.52,0.00035616,9]
[388030890,1758971442251,-480.0,0.00035616,9]
[388030891,1758971442261,-480.0,0.00035616,9]
[388030892,1758971442270,-480.0,0.00035616,9]
[388030893,1758971442279,-480.0,0.00035616,9]
[388030894,1758971442288,-1218.13,0.00035616,9]
[388030895,1758971442297,-1581.13,0.00035616,9]
[388030896,1758971442306,-480.0,0.00035616,9]
[388030897,1758971442316,-480.0,0.00035616,9]
[388030898,1758971442325,-480.0,0.00035616,9]
[388030899,1758971442334,-480.0,0.00035616,9]
[388030900,1758971442344,-480.0,0.00035616,9]
[388030901,1758971442353,-480.0,0.00035616,9]
[388030902,1758971442363,-480.0,0.00035616,9]
[388030903,1758971442372,-480.0,0.00035616,9]
[388030904,1758971442383,-701.24,0.00035616,9]
[388030905,1758971442392,-480.0,0.00035616,9]
[388030906,1758971442401,-483.03256815,0.00035616,9]
[388030907,1758971442410,-480.0,0.00035616,9]
[388030908,1758971442419,-480.0,0.00035616,9]
[388030909,1758971442428,-480.0,0.00035616,9]
[388030910,1758971442438,-480.0,0.00035616,9]
[388030911,1758971442447,-480.0,0.00035616,9]
[388030912,1758971442456,-480.0,0.00035616,9]
[388030913,1758971442466,-480.0,0.00035616,9]
[388030914,1758971442475,-480.0,0.00035616,9]
[388030915,1758971442484,-480.0,0.00035616,9]
[388030916,1758971442494,-480.0,0.00035616,9]
[388030917,1758971442503,-480.0,0.00035616,9]
[388030918,1758971442512,-1768.45,0.00035616,9]
[388030919,1758971442521,-480.0,0.00035616,9]
[388030920,1758971442531,-500.0,0.00035616,9]
[388030921,1758971442540,-480.0,0.00035616,9]
[388030922,1758971442552,-254.18,0.00035616,9]
[388030923,1758971442561,-480.0,0.00035616,9]
[388030924,1758971442573,-480.0,0.00035616,9]
[388030925,1758971442583,-480.0,0.00035616,9]
[388030926,1758971442594,-480.0,0.00035616,9]
[388030927,1758971442604,-480.0,0.00035616,9]
[388030928,1758971442613,-480.0,0.00035616,9]
[388030930,1758971442623,-151.0,0.00035616,7]
[388030932,1758971442633,-537.77,0.00035616,9]
[388030934,1758971442642,-151.0,0.00035616,7]
[388030936,1758971442650,-480.0,0.00035616,9]
[388030937,1758971442659,-480.0,0.00035616,9]
[388030938,1758971442668,-151.0,0.00035616,7]
[388030939,1758971442677,-151.0,0.00035616,7]
[388030940,1758971442686,-480.0,0.00035616,9]
[388030941,1758971442695,-151.0,0.00035616,7]
[388030942,1758971442704,-510.37,0.00035616,9]
[388030943,1758971442714,-480.0,0.00035616,9]
[388030944,1758971442723,-575.55950337,0.00035616,9]
[388030945,1758971442732,-893.96,0.00035616,9]
[388030946,1758971442740,-480.0,0.00035616,9]
[388030947,1758971442749,-151.0,0.00035616,7]
[388030948,1758971442759,-480.0,0.00035616,9]
[388030949,1758971442768,-480.0,0.00035616,9]
[388030950,1758971442778,-480.0,0.00035616,9]
[388030951,1758971442788,-480.0,0.00035616,9]
[388030952,1758971442798,-480.0,0.00035616,9]
[388030953,1758971442807,-480.0,0.00035616,9]
[388030954,1758971442817,-480.0,0.00035616,9]
[388030955,1758971442827,-480.0,0.00035616,9]
[388030956,1758971442836,-480.0,0.00035616,9]
[388030957,1758971442845,-480.0,0.00035616,9]
[388030958,1758971442854,-480.0,0.00035616,9]
[388030959,1758971442863,-1783.09,0.00035616,9]
[388030960,1758971442872,-562.16,0.00035616,9]
[388030961,1758971442881,-480.0,0.00035616,9]
[388030962,1758971442890,-480.0,0.00035616,9]
[388030963,1758971442899,-629.61341048,0.00035616,9]
[388030964,1758971442908,-480.0,0.00035616,9]
[388030965,1758971442917,-480.0,0.00035616,9]
[388030966,1758971442926,-261.038761,0.00035616,7]
[388030967,1758971442935,-486.08548576,0.00035616,9]
[388030968,1758971442944,-480.0,0.00035616,9]
[388030969,1758971442953,-480.0,0.00035616,9]
[388030970,1758971442962,-480.0,0.00035616,9]
[388030971,1758971442972,-480.0,0.00035616,9]
[388030972,1758971442981,-480.0,0.00035616,9]
[388030973,1758971442991,-1444.71,0.00035616,9]
[388030974,1758971443000,-480.0,0.00035616,9]
[388030975,1758971443009,-480.0,0.00035616,9]
[388030976,1758971443018,-609.36421997,0.00035616,9]
[388030977,1758971443028,-480.0,0.00035616,9]
[388030978,1758971443037,-275.62831981,0.00035616,9]
[388030979,1758971443047,-520.6142878,0.00035616,9]
[388030980,1758971443056,-480.0,0.00035616,9]
[388030981,1758971443066,-480.0,0.00035616,9]
[388030982,1758971443076,-480.0,0.00035616,9]
[388030983,1758971443085,-480.0,0.00035616,9]
[388030984,1758971443095,-480.0,0.00035616,9]
[388030985,1758971443104,-4446.46,0.00035616,9]
[388030986,1758971443114,-151.0,0.00035616,7]
[388030987,1758971443123,-480.0,0.00035616,9]
[388030988,1758971443132,-480.0,0.00035616,9]
[388030989,1758971443142,-480.0,0.00035616,9]
[388030990,1758971443151,-480.0,0.00035616,9]
[388030991,1758971443160,-480.0,0.00035616,9]